bitfinex/quotes_ETHUSD_20260228
["timestamp","ask_amount","ask_price","bid_price","bid_amount"]
[1772241852597,0.002,1934.0,1933.9,0.47549692]
[1772241853216,0.002,1934.0,1933.9,0.49091008]
[1772241854082,0.002,1934.0,1933.9,2.27891008]
[1772241865233,0.002,1934.4,1933.9,3.08172454]
[1772241865521,0.002,1934.4,1934.3,0.48991008]
[1772241865719,0.002,1934.4,1934.3,2.28491008]
[1772241865889,0.002,1934.4,1934.3,1.795]
[1772241867291,0.002,1934.4,1934.3,3.08745721]
[1772241867495,0.002,1934.4,1934.3,2.28491008]
[1772241868119,0.002,1934.5,1934.4,0.48991008]
[1772241869525,0.002,1934.5,1934.1,1.795]
[1772241869526,0.46935777,1934.2,1934.1,1.795]
[1772241869829,0.46935777,1934.3,1934.1,1.795]
[1772241874132,0.46935777,1934.4,1934.1,1.795]
[1772241874336,0.46935777,1934.4,1934.1,2.28491008]
[1772241875736,1.76176425,1934.4,1934.1,2.28491008]
[1772241879440,1.76176425,1934.4,1934.2,0.001]
[1772241879821,0.002,1934.3,1934.2,0.001]
[1772241880626,0.002,1934.3,1934.2,0.84092365]
[1772241881744,0.002,1934.4,1934.3,0.45065357]
[1772241883639,0.002,1934.4,1934.2,0.84092365]
[1772241884144,0.49871051,1934.4,1934.2,0.001]
[1772241886112,0.002,1934.4,1934.2,0.45165357]
[1772241887244,1.294258,1934.6,1934.3,0.45065357]
[1772241887245,0.002,1934.6,1934.3,0.45065357]
[1772241892446,0.002,1934.5,1934.3,0.45065357]
[1772241897850,0.002,1934.5,1934.4,0.45065357]
[1772241898054,0.002,1934.6,1934.4,0.45065357]
[1772241901271,0.002,1934.8,1934.6,0.45065357]
[1772241902041,0.00153886,1935.0,1934.8,0.45065357]
[1772241902245,1.79024125,1935.0,1934.6,0.45065357]
[1772241902458,1.29353074,1935.0,1934.6,0.45065357]
[1772241902792,0.49671051,1934.9,1934.6,0.45065357]
[1772241903564,1.29353713,1935.0,1934.7,0.45065357]
[1772241903565,0.49824937,1935.0,1934.7,0.45065357]
[1772241903744,0.00153886,1935.0,1934.7,0.45065357]
[1772241904164,0.00153886,1935.0,1934.9,0.45065357]
[1772241904333,0.49671051,1935.7,1935.0,0.45065357]
[1772241905355,1.78829968,1935.6,1935.2,1.03436837]
[1772241905532,0.49671051,1935.5,1935.2,0.45065357]
[1772241905988,0.49671051,1935.5,1935.0,1.03436837]
[1772241906140,0.49671051,1935.5,1935.1,0.45065357]
[1772241907568,1.78839213,1935.5,1935.1,0.45065357]
[1772241908573,0.49671051,1935.4,1935.1,0.45065357]
[1772241909988,1.78843729,1935.4,1935.1,0.45065357]
[1772241910865,0.47777949,1935.3,1934.6,2.26894645]
[1772241911079,0.47777949,1935.1,1934.4,0.46504645]
[1772241911285,0.47777949,1935.1,1934.5,1.805]
[1772241911696,0.47777949,1934.9,1934.4,0.0011]
[1772241911865,0.47777949,1934.9,1934.5,0.46394645]
[1772241912565,0.47777949,1934.9,1934.4,0.5848148]
[1772241912766,0.47777949,1934.9,1934.4,1.04876125]
[1772241913201,0.47777949,1934.9,1934.4,0.46504645]
[1772241913369,0.47777949,1934.9,1934.4,0.0011]
[1772241913865,1.7699027,1934.8,1934.4,0.46504645]
[1772241917196,1.7699027,1934.8,1934.5,0.001]
[1772241919615,0.47777949,1934.7,1934.5,0.001]
[1772241920314,0.002,1935.0,1934.7,0.46394645]
[1772241922508,0.47977949,1935.0,1934.7,0.46394645]
[1772241923513,0.002,1935.0,1934.8,0.46394645]
[1772241924721,0.002,1935.0,1934.9,0.46394645]
[1772241926631,1.29185089,1935.3,1934.9,0.46394645]
[1772241926842,7.83969395,1935.8,1935.0,0.46394645]
[1772241926843,1.7694719,1935.5,1935.0,0.46394645]
[1772241926995,0.47777949,1935.4,1935.0,0.46394645]
[1772241928399,1.76942472,1935.6,1935.1,0.46394645]
[1772241928599,0.47777949,1935.5,1935.1,0.46394645]
[1772241929917,1.76945193,1935.5,1935.1,0.46394645]
[1772241930736,1.76923521,1935.8,1935.3,0.46394645]
[1772241931031,0.47777949,1935.7,1935.3,0.46394645]
[1772241932227,0.47777949,1935.5,1935.2,2.26694645]
[1772241932534,1.29158917,1935.6,1935.3,0.46394645]
[1772241933337,1.76936866,1935.6,1935.3,0.46394645]
[1772241933514,0.002,1935.4,1935.3,0.46394645]
[1772241937248,0.002,1935.4,1935.2,2.26694645]
[1772241941169,0.47260619,1935.4,1935.2,1.803]
[1772241941665,0.002,1935.4,1935.2,2.2545537]
[1772241942066,0.002,1935.4,1935.3,0.4515537]
[1772241943070,0.002,1935.5,1935.3,0.4515537]
[1772241944369,0.002,1935.5,1935.3,2.2575537]
[1772241948242,0.002,1935.4,1935.3,2.2575537]
[1772241951891,0.47260619,1935.4,1935.1,1.809]
[1772241952097,0.002,1935.4,1935.2,0.4515537]
[1772241952262,0.002,1935.4,1935.2,0.84025361]
[1772241952570,0.002,1935.4,1935.3,0.4515537]
[1772241961917,0.002,1935.4,1935.2,0.4515537]
[1772241962506,0.47260619,1935.4,1935.2,1.81]
[1772241963920,5.16644733,1935.6,1935.3,0.84025361]
[1772241963921,1.29163161,1935.6,1935.3,0.84025361]
[1772241964498,1.29163161,1935.6,1935.3,0.84125361]
[1772241964823,1.29363161,1935.6,1935.3,0.84125361]
[1772241965817,1.29363161,1935.6,1935.3,0.4525537]
[1772241967440,1.29363161,1935.6,1935.3,0.84125361]
[1772241968529,0.002,1935.6,1935.3,0.84125361]
[1772241969834,0.002,1935.6,1935.3,0.001]
[1772241969835,0.47060619,1935.5,1935.3,0.001]
[1772241970010,0.002,1935.6,1935.4,0.4515537]
[1772241970408,0.46426283,1935.6,1935.3,0.001]
[1772241971840,7.70358761,1935.9,1935.6,0.49537171]
[1772241971841,1.75370337,1935.9,1935.6,0.49537171]
[1772241972939,1.75370337,1935.9,1935.6,0.49137171]
[1772241976941,0.46226283,1935.5,1935.3,0.001]
[1772241977116,0.46226283,1935.5,1935.1,0.001]
[1772241977317,0.46226283,1935.5,1935.2,0.001]
[1772241979050,1.75398547,1935.4,1935.2,0.001]
[1772241982549,1.75398547,1935.4,1934.9,1.808]
[1772241982550,0.46226283,1935.3,1934.9,1.808]
[1772241982934,0.46226283,1935.3,1934.9,2.29838142]
[1772241983446,0.46226283,1935.3,1934.9,2.68708133]
[1772241983956,1.75409841,1935.3,1934.9,2.68708133]
[1772241984253,1.75405343,1935.3,1935.0,0.49038142]
[1772241986555,0.46226283,1935.4,1935.0,0.49038142]
[1772241986861,1.29177227,1935.4,1935.1,0.87908133]
[1772241988065,1.7540351,1935.4,1935.1,0.87908133]
[1772241989463,0.46226283,1935.3,1935.0,0.49038142]
[1772241989973,0.46226283,1935.3,1934.9,1.808]
[1772241990551,0.46226283,1935.3,1934.8,0.49038142]
[1772241990765,0.46226283,1935.3,1934.8,2.29538142]
[1772241991365,1.75411896,1935.2,1935.0,0.001]
[1772241992336,0.46426283,1935.4,1935.1,0.87908133]
[1772241992745,0.002,1935.5,1935.4,0.49038142]
[1772241993435,0.002,1935.5,1935.2,0.49038142]
[1772241994978,0.46426283,1935.5,1935.2,0.49038142]
[1772241995179,0.46226283,1935.4,1935.0,0.001]
[1772241995586,0.46226283,1935.2,1935.0,0.001]
[1772242003105,1.75412671,1935.2,1935.0,0.001]
[1772242006796,0.46226283,1935.2,1935.1,0.001]
[1772242007616,1.29179417,1935.3,1935.1,0.001]
[1772242008620,1.75975891,1935.3,1935.1,0.001]
[1772242011234,0.46796474,1935.2,1934.7,0.001]
[1772242011435,0.46796474,1935.2,1934.7,0.45113468]
[1772242012401,0.46796474,1935.2,1934.7,1.74332349]
[1772242012603,0.46796474,1935.2,1934.8,0.45013468]
[1772242013215,1.29192289,1935.1,1934.8,0.45013468]
[1772242014122,1.75988763,1935.1,1934.8,0.45013468]
[1772242014303,1.75988763,1935.1,1934.8,2.25413468]
[1772242015434,1.75988763,1935.1,1934.4,0.0011]
[1772242015435,0.46796474,1934.9,1934.4,0.0011]
[1772242016008,0.46796474,1935.0,1934.5,0.45213468]
[1772242017336,0.46796474,1934.8,1934.5,0.45213468]
[1772242017538,0.46796474,1934.8,1934.5,0.002]
[1772242020449,1.29219,1934.7,1934.5,0.002]
[1772242020746,1.29219,1934.7,1934.6,0.001]
[1772242023639,5.63562128,1935.2,1934.6,0.45113468]
[1772242023852,0.46796474,1935.1,1934.7,0.45213468]
[1772242024053,0.46796474,1935.1,1934.6,0.001]
[1772242024262,0.46796474,1935.1,1934.6,0.04224674]
[1772242029039,0.5,1934.9,1934.5,0.001]
[1772242033384,1.29212321,1934.8,1934.5,0.001]
[1772242033584,1.29212321,1934.8,1934.6,0.001]
[1772242034986,1.79210011,1934.9,1934.6,0.001]
[1772242037073,1.29401747,1935.0,1934.6,0.001]
[1772242037455,1.79401747,1935.0,1934.6,0.001]
[1772242037757,0.502,1935.0,1934.6,0.001]
[1772242038084,0.4995,1934.9,1934.2,0.001]
[1772242038260,0.4995,1934.7,1934.2,0.002]
[1772242040575,0.4995,1934.5,1934.2,0.002]
[1772242041453,0.4995,1934.5,1934.2,0.001]
[1772242042499,0.4995,1934.7,1934.3,0.001]
[1772242044025,1.29225679,1934.6,1934.3,0.001]
[1772242044311,1.29225679,1934.6,1934.2,0.001]
[1772242044312,0.58326601,1934.4,1934.2,0.001]
[1772242044478,0.4995,1934.3,1934.0,0.00253886]
[1772242045182,0.4995,1934.3,1933.9,0.001]
[1772242045603,0.4995,1934.3,1933.6,0.0011]
[1772242045604,0.4995,1933.9,1933.6,0.0011]
[1772242045800,0.4995,1933.7,1933.4,0.0011]
[1772242046184,1.79242511,1933.6,1933.4,0.0011]
[1772242048204,0.4995,1933.6,1933.4,0.0011]
[1772242049413,1.79233534,1933.8,1933.4,0.0011]
[1772242050323,0.4995,1933.7,1933.4,0.0021]
[1772242052420,1.79224469,1933.9,1933.5,0.001]
[1772242052722,1.29274469,1933.9,1933.5,0.001]
[1772242054009,1.79224469,1933.9,1933.5,0.001]
[1772242059131,0.4995,1933.8,1933.5,0.001]
[1772242059827,0.4995,1933.8,1933.6,0.0011]
[1772242060035,0.5005,1933.8,1933.6,0.0011]
[1772242060396,0.001,1933.8,1933.6,0.0021]
[1772242065231,0.5005,1933.8,1933.6,0.0011]
[1772242067428,1.79333032,1933.8,1933.6,0.0011]
[1772242067836,0.4995,1933.7,1933.5,0.0011]
[1772242068733,1.79278032,1933.8,1933.5,0.0011]
[1772242071017,0.49895,1933.7,1933.5,0.0011]
[1772242071226,0.49895,1933.7,1933.1,0.0011]
[1772242071227,0.49895,1933.6,1933.1,0.0011]
[1772242071913,0.49895,1933.6,1933.5,0.0011]
[1772242072120,0.49895,1933.5,1933.1,0.0011]
[1772242072430,0.49895,1933.5,1933.3,0.0011]
[1772242077047,1.29305886,1933.4,1933.3,0.0011]
[1772242077225,1.79200886,1933.4,1933.3,0.0011]
[1772242079027,0.49895,1933.4,1933.3,0.0011]
[1772242079225,1.79198787,1933.5,1933.3,0.0011]
[1772242079617,0.49895,1933.5,1933.3,0.0011]
[1772242079941,1.79183031,1933.7,1933.4,0.0021]
[1772242080136,0.49395,1933.6,1933.3,0.0032]
[1772242081249,1.78690881,1933.6,1933.3,0.0032]
[1772242082455,1.78690881,1933.6,1933.3,0.0011]
[1772242083860,0.49395,1933.5,1933.3,0.0011]
[1772242084453,0.49395,1933.6,1933.3,0.0132]
[1772242084652,0.49395,1933.6,1933.4,0.0011]
[1772242085115,0.001,1933.7,1933.4,0.0132]
[1772242085450,0.001,1933.7,1933.2,1.68264942]
[1772242085451,0.4934,1933.4,1932.0,0.00153886]
[1772242085633,0.4934,1933.4,1931.2,0.00153886]
[1772242085634,0.4934,1932.0,1931.2,0.00153886]
[1772242085835,1.29433083,1931.5,1931.3,0.00153886]
[1772242086164,0.4934,1931.4,1931.0,1.78753886]
[1772242086471,1.68379532,1931.5,1931.0,0.00153886]
[1772242086472,0.88286449,1931.3,1931.0,0.00153886]
[1772242086757,0.4934,1931.0,1930.1,1.681]
[1772242086923,0.4934,1930.7,1930.1,1.681]
[1772242087639,0.4934,1931.1,1930.4,0.0132]
[1772242088155,0.4934,1931.1,1930.5,1.29500129]
[1772242088336,5.17778917,1931.4,1930.6,0.0132]
[1772242088337,0.4934,1931.3,1930.6,0.0132]
[1772242088539,0.4934,1931.3,1930.7,1.787]
[1772242089942,0.4934,1931.3,1930.7,1.8002]
[1772242090148,1.78769316,1931.6,1930.8,1.30800008]
[1772242090345,0.4934,1931.5,1930.8,1.30800008]
[1772242094354,0.4934,1931.5,1930.9,0.0132]
[1772242095835,0.4934,1931.5,1931.0,1.785]
[1772242096033,0.4934,1931.4,1930.8,1.29480008]
[1772242096530,0.4934,1931.4,1931.0,0.0011]
[1772242097563,0.4934,1931.3,1931.0,0.0011]
[1772242099559,0.4934,1931.5,1931.0,0.0011]
[1772242100886,0.4934,1931.5,1930.6,5.17971597]
[1772242100887,0.49285,1930.7,1929.0,0.00153886]
[1772242101155,0.49285,1929.2,1928.5,1.30949326]
[1772242101332,0.49285,1929.2,1928.4,5.1855651]
[1772242103650,0.49285,1929.2,1928.4,5.1998651]
[1772242106168,0.45361596,1928.4,1926.7,0.36493158]
[1772242106368,0.45361596,1927.7,1926.6,0.47240191]
[1772242106598,0.45361596,1927.7,1926.5,1.29769011]
[1772242106599,0.45361596,1927.7,1926.7,0.47240191]
[1772242107197,0.45515482,1928.0,1927.0,0.47240191]
[1772242107389,0.45515482,1928.0,1926.9,1.95415117]
[1772242107390,0.45515482,1928.0,1927.1,2.27340191]
[1772242107969,1.29674775,1927.9,1927.2,1.29721876]
[1772242108178,1.29674775,1927.9,1926.6,1.95415117]
[1772242108179,0.45361596,1927.8,1926.4,0.47240191]
[1772242108380,0.00153886,1928.0,1927.1,0.47240191]
[1772242108706,0.00153886,1928.0,1927.2,1.129]
[1772242108871,0.00153886,1928.0,1927.3,0.47240191]
[1772242109905,0.00153886,1928.0,1927.4,1.29708415]
[1772242110099,0.00153886,1928.0,1927.4,3.72363723]
[1772242111302,0.00153886,1928.0,1927.5,0.47240191]
[1772242112696,0.00153886,1928.0,1927.5,1.29697918]
[1772242114806,0.00153886,1928.0,1927.6,1.804]
[1772242116110,0.00153886,1928.0,1927.7,1.803]
[1772242117519,0.00153886,1928.0,1927.7,3.09986578]
[1772242118027,1.75001325,1928.5,1927.8,0.47240191]
[1772242119505,1.75001325,1928.5,1927.8,1.76918568]
[1772242121430,0.001,1928.1,1927.8,1.76918568]
[1772242121601,0.001,1928.1,1927.8,1.76918757]
[1772242124123,0.001,1928.1,1927.8,1.29678566]
[1772242124323,0.45361596,1928.5,1927.9,0.4950091]
[1772242124731,1.74996479,1928.5,1927.9,0.4950091]
[1772242126323,1.74996479,1928.5,1927.9,1.79171977]
[1772242131541,0.45361596,1928.5,1928.0,0.4950091]
[1772242131719,0.45373012,1928.6,1928.1,2.2950091]
[1772242132811,0.45373012,1928.6,1928.1,1.8]
[1772242133413,0.45373012,1928.6,1927.8,5.18701184]
[1772242133414,0.45373012,1928.5,1927.8,1.799]
[1772242133652,0.45373012,1928.5,1927.6,0.0011]
[1772242133653,0.45373012,1928.3,1927.7,1.076]
[1772242134317,0.45373012,1928.3,1928.0,0.0011]
[1772242135228,0.45373012,1928.3,1927.6,0.4961091]
[1772242135229,0.45373012,1928.3,1927.6,1.7571]
[1772242138224,0.45373012,1928.1,1927.6,1.7571]
[1772242138822,0.45373012,1928.1,1927.6,3.05403385]
[1772242139232,0.45373012,1928.1,1927.6,1.7571]
[1772242140118,0.45373012,1928.1,1927.6,3.54904309]
[1772242140743,0.45373012,1928.3,1927.8,0.4950091]
[1772242140941,1.75112326,1928.5,1927.8,0.4950091]
[1772242141140,0.45373012,1928.4,1927.9,1.795]
[1772242144549,1.29647876,1928.3,1927.9,1.795]
[1772242144735,0.45373012,1928.2,1927.9,1.795]
[1772242145053,5.18572003,1928.4,1927.9,1.795]
[1772242145054,0.45373012,1928.4,1927.9,3.09174717]
[1772242145254,0.45373012,1928.4,1927.9,3.58675627]
[1772242147242,1.75014726,1928.4,1927.9,3.58675627]
[1772242147753,0.001,1928.3,1927.9,3.58675627]
[1772242148852,0.45473012,1928.3,1927.9,3.58675627]
[1772242150534,0.45013876,1928.1,1927.8,0.0011]
[1772242151954,0.45013876,1928.0,1927.8,0.0011]
[1772242152947,0.45013876,1928.0,1927.8,1.7931]
[1772242154060,1.29674775,1927.9,1927.8,1.7931]
[1772242154259,1.74687355,1928.0,1927.8,1.7931]
[1772242154960,0.45013876,1927.9,1927.8,1.7931]
[1772242155159,0.45013876,1927.9,1927.7,1.7921]
[1772242156356,0.45013876,1927.8,1927.7,1.7921]
[1772242159361,0.45013876,1927.7,1927.5,0.0011]
[1772242161554,1.74708833,1927.6,1927.5,0.0011]
[1772242162258,1.74708833,1927.6,1927.3,0.0011]
[1772242162462,1.74708833,1927.6,1927.3,0.0022]
[1772242164875,1.74691937,1927.9,1927.4,0.45298393]
[1772242165068,1.29678061,1927.9,1927.4,0.45298393]
[1772242166072,0.45013876,1927.9,1927.4,0.45298393]
[1772242166265,0.45013876,1927.9,1927.4,3.53605846]
[1772242166461,0.45013876,1927.9,1927.3,0.45298393]
[1772242166662,0.45013876,1927.9,1927.4,0.45298393]
[1772242167054,0.45013876,1927.9,1927.5,0.0011]
[1772242167565,0.45013876,1927.9,1927.5,0.45298393]
[1772242167964,1.74693718,1927.9,1927.5,0.45298393]
[1772242168855,1.29673753,1928.0,1927.6,0.45298393]
[1772242169096,1.29673753,1928.0,1927.6,0.45188393]
[1772242169376,1.74687629,1928.0,1927.6,0.45188393]
[1772242170480,0.45013876,1927.9,1927.6,0.45188393]
[1772242171355,0.45013876,1927.9,1927.3,0.0011]
[1772242171556,0.45013876,1927.9,1927.0,0.00153886]
[1772242171752,0.45013876,1927.9,1927.1,0.0011]
[1772242172477,1.29681502,1927.8,1927.1,0.0011]
[1772242172680,1.74695378,1927.8,1927.7,0.0011]
[1772242172982,0.45013876,1927.7,1927.1,0.0011]
[1772242173282,0.45013876,1927.7,1927.5,0.0011]
[1772242173462,0.45013876,1927.7,1927.4,0.0011]
[1772242174179,0.45013876,1927.7,1927.2,0.0011]
[1772242174384,0.45013876,1927.7,1927.0,0.00153886]
[1772242174566,0.45013876,1927.5,1927.1,0.0011]
[1772242175175,0.45013876,1927.5,1927.0,0.00153886]
[1772242176690,0.45013876,1927.3,1927.0,0.00153886]
[1772242179178,0.45013876,1927.1,1927.0,0.00153886]
[1772242179789,0.45013876,1927.3,1927.0,0.00153886]
[1772242179958,1.74729021,1927.3,1927.0,0.00153886]
[1772242180557,0.45020279,1927.2,1927.0,0.00153886]
[1772242180779,1.74731897,1927.4,1927.0,0.48359336]
[1772242182080,0.45020279,1927.3,1927.0,0.00153886]
[1772242184095,0.45020279,1927.1,1926.7,0.4831545]
[1772242184274,0.45020279,1927.1,1926.7,0.0011]
[1772242185774,0.45020279,1927.1,1927.0,0.0011]
[1772242186098,1.29735339,1927.0,1926.8,0.0011]
[1772242186256,0.45020279,1926.9,1926.8,0.0011]
[1772242187574,1.29735339,1927.0,1926.8,0.0011]
[1772242187873,1.74755618,1927.0,1926.8,0.0011]
[1772242189127,1.29735339,1927.0,1926.8,0.0011]
[1772242189284,0.45020279,1926.9,1926.8,0.0011]
[1772242191280,1.74762351,1926.9,1926.8,0.0011]
[1772242191476,1.74735424,1927.3,1926.8,0.4831545]
[1772242192689,0.45020279,1927.2,1926.8,0.4831545]
[1772242192891,5.1884647,1927.4,1926.8,0.4831545]
[1772242192892,0.45020279,1927.4,1926.8,0.4831545]
[1772242193095,1.74728694,1927.4,1926.8,0.4831545]
[1772242193489,1.74728694,1927.4,1926.9,0.4820545]
[1772242193672,0.45020279,1927.3,1926.9,0.4820545]
[1772242194068,1.74726765,1927.5,1926.9,0.4820545]
[1772242194272,1.74726765,1927.5,1927.0,0.4820545]
[1772242195785,0.45020279,1927.4,1927.0,1.77940373]
[1772242196688,0.45020279,1927.4,1927.0,0.4820545]
[1772242197007,0.45020279,1927.4,1927.0,1.77940769]
[1772242197606,0.001,1927.3,1927.0,1.77940769]
[1772242198171,0.001,1927.3,1927.1,0.4820545]
[1772242199008,0.001,1927.6,1927.1,0.4820545]
[1772242199780,0.001,1927.6,1927.3,0.4820545]
[1772242200004,0.001,1927.6,1927.4,2.2500545]
[1772242200702,0.001,1927.6,1927.5,0.4820545]
[1772242201397,0.001,1927.6,1927.2,1.29721876]
[1772242201601,0.001,1927.6,1927.3,3.5471501]
[1772242201803,0.001,1927.6,1927.4,0.4820545]
[1772242202909,0.001,1927.9,1927.4,0.4820545]
[1772242203524,1.74664133,1928.4,1927.7,0.4820545]
[1772242203746,1.74664133,1928.4,1927.9,0.4820545]
[1772242203885,1.74664133,1928.4,1927.9,1.77876999]
[1772242204306,0.45120279,1928.5,1928.0,0.4820545]
[1772242204497,1.2964213,1928.4,1928.0,0.4820545]
[1772242204700,1.74662409,1928.4,1928.0,0.4820545]
[1772242204914,1.74662203,1928.4,1928.0,0.4820545]
[1772242205110,0.45020279,1928.4,1928.0,0.4820545]
[1772242205902,1.74661443,1928.4,1928.0,0.4820545]
[1772242206816,0.45020279,1928.4,1928.0,1.77873351]
[1772242207916,0.45020279,1928.4,1927.6,5.18774665]
[1772242207917,0.45020279,1928.1,1927.6,3.06691839]
[1772242208330,0.45020279,1927.9,1927.6,1.77]
[1772242208616,1.29662698,1928.1,1927.6,2.2520545]
[1772242208617,0.45020279,1928.0,1927.6,2.2520545]
[1772242209394,1.29662698,1928.1,1927.0,5.19045052]
[1772242209395,0.45020279,1927.8,1927.1,3.55034057]
[1772242209593,0.45020279,1927.8,1927.2,0.4820545]
[1772242209804,0.45020279,1927.7,1927.5,0.0011]
[1772242211025,0.4909404,1927.6,1927.5,0.0011]
[1772242212006,1.78788997,1927.6,1927.5,0.0011]
[1772242212210,0.4909404,1927.5,1927.4,0.0011]
[1772242214329,1.78795726,1927.5,1927.4,0.0011]
[1772242215320,1.78795726,1927.5,1927.0,2.2363907]
[1772242215530,0.4909404,1927.4,1927.0,0.00153886]
[1772242215905,0.4909404,1927.4,1926.9,1.66863886]
[1772242216631,1.29715145,1927.3,1926.9,1.66863886]
[1772242217015,1.29715145,1927.3,1926.8,3.53242819]
[1772242217212,1.29715145,1927.3,1926.8,2.23495184]
[1772242217742,1.29715145,1927.3,1926.8,3.53243123]
[1772242217928,1.78809185,1927.3,1926.8,3.53243123]
[1772242218134,0.4909404,1927.2,1926.8,0.0011]
[1772242218839,1.78816511,1927.2,1926.8,0.46895184]
[1772242219046,0.4909404,1927.2,1926.8,0.46895184]
[1772242219214,0.4909404,1927.2,1926.8,0.0011]
[1772242219215,0.4909404,1927.1,1926.8,0.0011]
[1772242220713,0.4909404,1927.2,1926.8,0.46895184]
[1772242220932,1.96039146,1927.8,1926.8,0.46895184]
[1772242220933,0.4909404,1927.5,1926.8,0.46895184]
[1772242222310,0.4909404,1927.5,1926.9,0.0011]
[1772242222507,0.4909404,1927.5,1926.8,0.46895184]
[1772242222508,0.4909404,1927.5,1926.8,0.37005184]
[1772242222735,0.001,1927.1,1926.8,0.37005184]
[1772242223436,0.001,1927.1,1926.7,0.0011]
[1772242224236,0.001,1927.1,1926.8,0.4057681]
[1772242226661,0.001,1927.1,1926.8,1.70325367]
[1772242226839,0.001,1927.1,1926.9,0.4057681]
[1772242227015,1.29706849,1927.5,1927.0,0.4047681]
[1772242227220,1.78789783,1927.6,1927.2,0.4047681]
[1772242227643,1.29691056,1927.7,1927.2,0.4047681]
[1772242227936,0.00153886,1928.0,1927.2,0.4047681]
[1772242227937,1.78920954,1928.0,1927.2,0.4047681]
[1772242228316,0.00153886,1928.0,1927.2,0.4047681]
[1772242228631,1.29822827,1928.0,1927.2,0.4047681]
[1772242229012,0.00153886,1928.0,1927.4,0.4047681]
[1772242229642,0.00153886,1928.0,1927.5,0.4047681]
[1772242229845,0.00153886,1928.0,1927.6,1.764]
[1772242230008,0.00153886,1928.0,1927.7,0.1547681]
[1772242230338,0.00153886,1928.0,1927.7,0.0537681]
[1772242231455,0.00153886,1928.0,1927.7,1.35064778]
[1772242231734,0.4909404,1927.9,1927.0,1.764]
[1772242232436,0.4909404,1927.9,1927.0,1.8177681]
[1772242233527,0.4909404,1927.7,1927.1,3.06128607]
[1772242234246,0.4909404,1927.7,1927.1,1.29728607]
[1772242234544,0.4909404,1927.7,1927.1,3.06128607]
[1772242234918,0.4909404,1927.7,1927.1,3.11505417]
[1772242235151,1.29777923,1927.9,1927.2,0.0537681]
[1772242235338,0.4919404,1927.9,1927.2,0.0537681]
[1772242235532,1.78869241,1927.9,1927.3,1.35091955]
[1772242236137,0.4909404,1927.8,1927.1,3.11501442]
[1772242237963,0.4909404,1927.6,1927.1,3.11501442]
[1772242240062,1.78789683,1927.6,1927.1,3.11501442]
[1772242240360,0.4909404,1927.6,1927.1,3.11501442]
[1772242242568,1.78789718,1927.6,1927.1,3.11501442]
[1772242242737,0.4909404,1927.6,1927.1,3.11501442]
[1772242243763,0.4909404,1927.6,1927.2,0.0537681]
[1772242244471,1.29695732,1927.6,1927.1,3.06124632]
[1772242244634,0.47311595,1927.5,1927.1,3.11501442]
[1772242245862,0.47311595,1927.5,1927.1,1.35101442]
[1772242246062,0.47311595,1927.5,1927.2,1.766]
[1772242246434,0.47311595,1927.5,1927.2,1.8197681]
[1772242246756,0.47311595,1927.5,1927.2,1.8208681]
[1772242246956,0.47311595,1927.5,1927.2,3.11808533]
[1772242247664,0.001,1927.6,1927.3,0.0537681]
[1772242250562,0.001,1927.6,1927.3,1.3508696]
[1772242251964,0.001,1927.6,1927.2,0.0011]
[1772242251965,0.47311595,1927.5,1927.2,0.0011]
[1772242253664,0.47311595,1927.5,1927.2,0.0548681]
[1772242254174,0.47311595,1927.5,1927.2,0.0011]
[1772242254863,0.47311595,1927.4,1927.3,1.77]
[1772242255863,0.47311595,1927.4,1927.2,1.7711]
[1772242257376,1.77109458,1927.6,1927.2,1.7711]
[1772242257549,1.77107243,1927.6,1927.2,1.8248681]
[1772242257744,0.47311595,1927.5,1927.2,0.0011]
[1772242257979,0.47311595,1927.5,1927.3,1.769]
[1772242259569,0.47311595,1927.4,1927.3,1.7701]
[1772242259769,0.47311595,1927.4,1927.0,0.0011]
[1772242261577,0.47201595,1927.2,1927.0,0.0011]
[1772242262138,0.47201595,1927.2,1926.8,0.0011]
[1772242262341,0.47201595,1927.2,1926.8,0.0033]
[1772242263342,0.47201595,1927.2,1926.8,0.0011]
[1772242263869,0.47201595,1927.0,1926.8,0.0011]
[1772242266249,0.47201595,1927.0,1926.7,0.0011]
[1772242266250,0.47201595,1926.8,1926.7,0.0011]
[1772242266679,0.47201595,1926.8,1926.3,1.765]
[1772242266870,0.47201595,1926.8,1926.0,0.00153886]
[1772242267069,0.47201595,1926.8,1926.1,0.0022]
[1772242267648,1.29742072,1926.9,1925.1,0.00373886]
[1772242267649,0.47146595,1926.2,1925.1,0.00373886]
[1772242267982,0.47146595,1925.9,1925.2,0.06080696]
[1772242268187,0.47146595,1925.7,1925.2,1.77073886]
[1772242268501,0.47146595,1925.7,1925.3,0.00373886]
[1772242268666,0.47146595,1925.7,1925.0,0.01053886]
[1772242268872,0.47146595,1925.7,1925.1,0.00373886]
[1772242269275,0.47146595,1925.7,1925.0,0.01053886]
[1772242269575,0.47146595,1925.7,1925.0,0.01427772]
[1772242269869,0.47146595,1925.7,1925.0,0.01053886]
[1772242270056,0.47146595,1925.7,1925.0,1e-08]
[1772242270257,0.47146595,1925.5,1924.5,0.1537726]
[1772242270455,0.47146595,1925.3,1924.5,0.00373887]
[1772242270656,0.47146595,1925.3,1924.6,0.00373886]
[1772242270882,0.47146595,1925.3,1924.7,0.00373886]
[1772242271084,0.46772709,1925.5,1924.8,2.80048065]
[1772242271382,0.46772709,1925.5,1925.3,0.0011]
[1772242271765,0.46772709,1925.5,1924.5,1.29901649]
[1772242271963,0.46772709,1925.5,1925.2,0.0011]
[1772242272686,0.46904652,1925.4,1925.2,0.0011]
[1772242273191,0.46904652,1925.4,1924.5,1e-08]
[1772242273892,0.46904652,1925.4,1924.6,0.06190696]
[1772242275698,0.46904652,1925.3,1924.7,1.29890372]
[1772242279611,0.46904652,1925.7,1924.9,2.80531951]
[1772242280114,0.46904652,1925.7,1925.0,1.36060825]
[1772242280293,0.46904652,1925.7,1925.1,1.82890696]
[1772242281011,0.46904652,1925.9,1925.2,2.80531951]
[1772242281490,0.46904652,1925.9,1925.0,1.36060825]
[1772242281806,0.46904652,1925.9,1925.1,1.768]
[1772242282113,0.46904652,1925.9,1925.1,5.19426553]
[1772242282114,0.46904652,1925.8,1925.1,5.19426553]
[1772242282309,0.46904652,1925.8,1925.2,1.768]
[1772242282818,0.46904652,1925.8,1925.2,1.82990696]
[1772242283397,0.00153886,1926.0,1925.3,0.06190696]